Workbook

Sheet Circular Pipe - Cement.
C3: SAPL Design | AB3: Circular Pipe - Cementitious
C5: Structural Design for Liner Thickness Using Cementitious Materials | AC5: Live and Dead Loads Calculation:
C6: Circular Corrugated Metal Pipe
AC7: If impact factor = 1 + 0.33 [(96 – h)/96] ≥ 1.0 | AH7: =MAX((1+0.33*((96-'Circular Pipe - Cement.'!H23)/96)),1) -> 1.2475
C8: Project: | AC8: lw load width parallel to direction of travel (in) | AH8: =AH62 -> 37.6
C9: Trial:
C10: Location: | AC10: hint (in) | AH10: =('Circular Pipe - Cement.'!H27-'Circular Pipe - Cement.'!H26-0.06*'Circular Pipe - Cement.'!H29)/'Circular Pipe - Cement.'!H24 -> 42.08695652
C11: DOT: | D11: Select DOT | AC11: ww Load width perpendicular to direction of travel (in) | AH11: =IF('Circular Pipe - Cement.'!H23<'Circular Pipe - Cement.'!AH10,'Circular Pipe - Cement.'!H26+'Circular Pipe - Cement.'!H24*'Circular Pipe - Cement.'!H23+0.06*'Circular Pipe - Cement.'!H29,(('Circular Pipe - Cement.'!H26+'Circular Pipe - Cement.'!H27+'Circular Pipe - Cement.'!H24*'Circular Pipe - Cement.'!H23)+0.06*'Circular Pipe - Cement.'!H29)) -> 51.2
C12: Latitude: | AA12: =IF('Circular Pipe - Cement.'!H23/12<'Circular Pipe - Cement.'!H32,'Circular Pipe - Cement.'!H23/12,'Circular Pipe - Cement.'!H32) -> 2 | AC12: PE earth load acting on the horizontal soil plane at the top of the pipe (psi) - No groundwater | AH12: ='Circular Pipe - Cement.'!H43*('Circular Pipe - Cement.'!H30*AA12-2*'Circular Pipe - Cement.'!H31)/144 -> 0.6178941203
C13: Longitude: | AC13: PE earth load acting on the horizontal soil plane at the top of the pipe (psi) - With groundwater | AH13: =(('Circular Pipe - Cement.'!H43*AA12-'Circular Pipe - Cement.'!H34)*'Circular Pipe - Cement.'!H30+'Circular Pipe - Cement.'!H34*('Circular Pipe - Cement.'!H30-62.4))/144 -> 0.6178941203
C14: Date: | AC14: Pw external hydrostatic pressure acting on the pipe (psi) | AH14: =0.433*('Circular Pipe - Cement.'!H34+'Circular Pipe - Cement.'!H35) -> 2.165
C16: Input | AC16: Design (Cementitious Liner):
C17: Output
AC18: PE earth load acting on the horizontal soil plane at the top of the pipe (psi) | AH18: =IF('Circular Pipe - Cement.'!H34=0,'Circular Pipe - Cement.'!AH12,'Circular Pipe - Cement.'!AH13) -> 0.6178941203
C19: Live and Dead Loads Calculation: | AC19: CL live load distribution coefficient (in.), is equal to lw / S ≤ 1.0 | AH19: =MIN(AH8/'Circular Pipe - Cement.'!H70,1) -> 0.6266666667
AC20: Pw external hydrostatic pressure acting on the pipe (psi) | AH20: =IF('Circular Pipe - Cement.'!H34=0,0,'Circular Pipe - Cement.'!AH14) -> 0
C21: Mp Multiple Presence Factor, typically equal to 1.2 Refer to AASHTO LRFD Bridge Design Specifications, 8th Ed. Table 3.6.1.1.2.1. | H21: 1.2
C22: P Design Wheel Load Refer to AASHTO Bridge Desgin Specifications, 8th Ed., Section 3.6.1.2.6b. P Load is the weight an AASHTO design truck imposes on a single wheel (or pair of wheels in the case of dual wheels). Typical HL-93 Design Truck has 3 axles, front axle load of 8 kips, and two rear axles with a load of 32 kips each (rear wheel load of 16 kips each) | H22: 16000 | I22: lb
C23: h Depth of Cover over Culvert Distance from top of the pipe to top of the soil | H23: 24 | I23: in. | AC23: Single Span | AG23: =IF('Circular Pipe - Cement.'!H59<='Circular Pipe - Cement.'!H78,IF('Circular Pipe - Cement.'!H78<='Circular Pipe - Cement.'!H60,1,0),0) -> 1
C24: LLDF Live Load Distribution Factor Refer to AASHTO Bridge Desgin Specifications, 8th Ed., Table 3.6.1.2.6a-1 For Concrete Pipe with fill depth 2.0ft or greater, linearly interpolate between these limits: 1.15 for diameter 2.0ft or less 1.75 for diameters 8.0ft or greater All other culverts and buried structures: 1.15 | H24: 1.15 | M24: Figure 8-1 | AC24: Multiple Span | AG24: =IF('Circular Pipe - Cement.'!H59<='Circular Pipe - Cement.'!H85,IF('Circular Pipe - Cement.'!H85<='Circular Pipe - Cement.'!H60,1,0),0) -> 1
C25: lt Tire Patch Length Refer to AASHTO LRFD Bridge Design Specifications, 8th Ed. Section 3.6.1.2.5. | H25: 10 | I25: in.
C26: Wt Tire Patch Width Refer to AASHTO LRFD Bridge Design Specifications, 8th Ed. Section 3.6.1.2.5. | H26: 20 | I26: in.
C27: Sw Spacing between the Wheel Pairs on the Axle Refer to AASHTO LRFD Bridge Design Specifications, 8th Ed. Section 3.6.1.2.3. | H27: 72 | I27: in. | AC27: Delaware Department of Transportation
C28: Sa Axle Spacing Refer to AASHTO LRFD Bridge Design Specifications, 8th Ed. Section 3.6.1.2.3. | H28: 48 | I28: in. | AC28: Florida Department of Transportation
C29: Di Inside Diameter or Clear Span of the Culvert | H29: 60 | I29: in. | AC29: Minnesota Department of Transportation
C30: δsoil Soil Unit Weight | H30: 120 | I30: pcf | AC30: New York State Department of Transportation
C31: c Soil Cohesion Cohesion per ASCE Manual of Practice (MOP) 60. Standard values: Clay, very soft: 40 psf Clay, medium: 250 psf Clay, hard: 1,000 psf Sand, loose dry: 0 psf Sand, silty: 100 psf Sand, dense: 300 psf | H31: 0 | I31: psf | AC31: North Carolina Department of Transportation
C32: Bc O.D. or outside span length of the liner (ft) | H32: =H29/12 -> 5 | I32: ft | AC32: Ohio Department of Transportation
C33: kµ' Select kµ' - Refer to Figure 9-13 in ASCE MOP 60 kµ'=0.1924 min for granular material without cohesion kµ'=0.165 max for sand and gravel kµ'=0.150 max for saturated top soil kµ'=0.130 max for ordinary clay kµ'=0.110 max for saturated clay | H33: 0.1924 | M33: Figure 8-2 | AC33: Pennsylvania Department of Transportation
C34: Hw Height of the Groundwater above the Top of the Pipe See figure 8-2 Hw = 0 if no groundwater | H34: 0 | I34: ft | AC34: Select DOT
C35: Hr height of the vertical dimension of the pipe (ft). | H35: =H29/12 -> 5
C37: Select if it is a Single Span culvert or Multiple Span culverts? | H37: Single Span
AA38: -2kµ'H/Bc | AC38: =-2*'Circular Pipe - Cement.'!H33*'Circular Pipe - Cement.'!H23/('Circular Pipe - Cement.'!H32*12) -> -0.15392
C39: =IF(H37="Single Span","","Specify the distance between inside faces of end walls perpendicular to roadway") ->  | H39: 0 | I39: =IF(H37="Single Span","","ft") ->  | M39: Figure 8-3
AC40: Select kµ' | AE40: =IF(C48="Note: The effects of live load is neglected.",0,1) -> 1
C41: Live and Dead Loads Results: | AC41: 0.1924
AC42: 0.165
C43: Ct Coefficient (Figure 9-13 in ASCE MOP 60) | H43: =(1-EXP('Circular Pipe - Cement.'!AC38))/(2*'Circular Pipe - Cement.'!H33) -> 0.3707364722 | AC43: 0.15 | AE43: Yes
C44: PL Live Load on Pipe | H44: =IF(H37="Single Span",IF(H23<=96,(H21*H22*'Circular Pipe - Cement.'!AH7)/('Circular Pipe - Cement.'!AH8*'Circular Pipe - Cement.'!AH11),0),IF(H23<=(H39*12),(H21*H22*'Circular Pipe - Cement.'!AH7)/('Circular Pipe - Cement.'!AH8*'Circular Pipe - Cement.'!AH11),0)) -> 12.44182181 | I44: psi | AC44: 0.13 | AE44: No
C45: PE Earth Load acting on the Horizontal Soil Plane at the Top of the Pipe | H45: ='Circular Pipe - Cement.'!AH18 -> 0.6178941203 | I45: psi | AC45: 0.11
C46: Pw External Hydrostatic Pressure acting on the Pipe | H46: ='Circular Pipe - Cement.'!AH20 -> 0 | I46: psi
C48: =IF(H37="Single Span",IF(H23<=96,"","Note: The effects of live load is neglected."),IF(H23<=(H39*12),"","Note: The effects of live load is neglected.")) -> 
C49: =IF(H37="Single Span",IF(H23<=96,"","Per AASHTO LRFD Bridge Design Specifications, 8th Ed, Section 3.6.1.2.6a: For single-span culverts, the effects of live load may be neglected where the depth of fill is more than 8.0 ft. and exceeds the span length."),IF(H23<=(H39*12),"","Per AASHTO LRFD Bridge Design Specifications, 8th Ed, Section 3.6.1.2.6a: For multiple span culverts, the effects of live load may be neglected where the depth of fill exceeds the distance between inside faces of end walls.")) -> 
C51: Design Assumptions (Cementitious Liner):
C53: r top radius of the liner structure measured to the centroid of the liner's profile | H53: =H29*0.5 -> 30 | I53: in.
C54: t Wall Thickness of the Liner - See figure 8-3 Note: Wall thickness is above the corrugation crests. | H54: 1 | I54: in.
C55: Assume only the liner above the corrugation crests is effective? Select Yes or No | H55: No
C56: =IF(H55="No","c Distance from the Centroid of the Liner Pipe Wall Profile to the Interior Wall Surface - See figure 8-3","") -> c Distance from the Centroid of the Liner Pipe Wall Profile to the Interior Wall Surface - See figure 8-3 | H56: 0.637 | I56: =IF(H55="No","in.","") -> in. | U56: =IF(H55="Yes",0.5*H54,H56) -> 0.637 | V56: in.
C57: =IF(H55="No","I SAPL Area Moment of Inertia of the Liner Wall Section","") -> I SAPL Area Moment of Inertia of the Liner Wall Section | H57: 0.1814 | I57: =IF(H55="No","in.4 /in.","") -> in.4 /in. | U57: =IF(H55="Yes",(H54^3)/12,H57) -> 0.1814 | V57: in.4/in.
C59: σCS Compressive Stress Strength of the Liner Material Compressive strength value to be provided by manufacturer in accordance with Pipe Liner Special Provision. | H59: -8390 | I59: psi
C60: σflex Flexural Stress Strength (Modulus of Rupture) of the Liner Material Flexural strength value to be provided by manufacturer in accordance with Pipe Liner Special Provision. | H60: 1665 | I60: psi | AC60: H.in Parallel | AH60: =(H28-H25)/H24 -> 33.04347826
C61: γEV Load Factor for Soil Prism Load - Service, 1.0 | H61: 1
C62: γEV Load Factor for Soil Prism Load - Strength, 1.30 | H62: 1.3 | AH62: =IF(H23<AH60,H25+H24*H23,H25+H28+H24*H23) -> 37.6
C63: γWA Load Factor for Groundwater Load, 1.0 | H63: 1
C64: γLL Load Factor for Live Load - Service, 1.0 | H64: 1
C65: γLL Load Factor for Live Load - Strength, 1.75 | H65: 1.75
C66: ƞEV Load Modifier for Soil Prism Load, use 1.0 per Article 1.3.2 of the BDS | H66: 1
C67: ƞR Load Modifier for Redundancy, 1.05 for Strength Limit State under Earth Loads | H67: 1.05
C68: ƞR Load Modifier for Redundancy, 1.0 for Strength Limit State under Live Loads | H68: 1
C69: ƞLL Load Modifier for Live Load, use 1.0 per Article 1.3.2 of the BDS | H69: 1
C70: S span of culvert (in) | H70: =H29 -> 60
C72: Results (Cementitious Liner)
C74: Service
C75: Tservice Thrust in Liner | H75: =0.8323*(H61*H45+'Circular Pipe - Cement.'!AH19*'Circular Pipe - Cement.'!H44*H64)*'Circular Pipe - Cement.'!H53+H46 -> 210.1083702 | I75: lb/in.
C76: A Area of the Cross-Section of the proposed Liner per linear inch | H76: =H54 -> 1 | I76: in.2/in.
C77: Mservice Moment | H77: =0.0062*'Circular Pipe - Cement.'!AH19*'Circular Pipe - Cement.'!H44*H64*(('Circular Pipe - Cement.'!H53)^2) -> 43.5065625 | I77: in.-lbs/in.
C78: σcrown Normal Stress (Service) | H78: =(-(H75/H76))+((H77*U56)/U57) -> -57.3317422 | I78: psi | J78: =IF(H78>=H59,IF(H78<=H60,"Stress within limits. The "&H54&"-in. thick liner is sufficient.","Stress exceeds limits. The "&H54&"-in. thick liner is not sufficient."),"Stress exceeds limits. The "&H54&"-in. thick liner is not sufficient.") -> Stress within limits. The 1-in. thick liner is sufficient.
C81: Strength
C82: Tstrength Thrust in Liner | H82: =0.8323*(H66*H67*H62*H45+'Circular Pipe - Cement.'!AH19*'Circular Pipe - Cement.'!H44*H65*H69*H68)*'Circular Pipe - Cement.'!H53+H46*H63 -> 361.7497914 | I82: lb/in.
C83: A Area of the Cross-Section of the proposed Liner per linear inch | H83: =H54 -> 1 | I83: in.2/in.
C84: Mstrength Moment | H84: =0.0062*'Circular Pipe - Cement.'!AH19*'Circular Pipe - Cement.'!H44*H65*H69*H68*(('Circular Pipe - Cement.'!H53)^2) -> 76.13648438 | I84: in.-lbs/in.
C85: σcrown Normal Stress (Strength) | H85: =(-(H82/H83))+((H84*U56)/U57) -> -94.39069251 | I85: psi | J85: =IF(H85>=H59,IF(H85<=H60,"Stress within limits. The "&H54&"-in. thick liner is sufficient.","Stress exceeds limits. The "&H54&"-in. thick liner is not sufficient."),"Stress exceeds limits. The "&H54&"-in. thick liner is not sufficient.") -> Stress within limits. The 1-in. thick liner is sufficient.

Sheet Arch Pipe - Cement.
AQ2: Pipe Arch Size (in.) | AR2: Cross-sectional Area (ft2) | AS2: Springline Rise, B (in) | AT2: Top Radius (in) | AU2: Bottom Corner Radius (in) | AV2: Bottom Radius (in)
C3: SAPL Design | AB3: Arch Pipe - Cementitious | AQ3: 17 x 13 | AR3: 1.1 | AS3: 4.125 | AT3: 8.625 | AU3: 3.5 | AV3: 25.625 | AX3: 17 | AY3: 13
AQ4: 21 x 15 | AR4: 1.6 | AS4: 4.875 | AT4: 10.75 | AU4: 4.125 | AV4: 33.125 | AX4: 21 | AY4: 15
C5: Structural Design for Liner Thickness Using Cementitious Materials | AC5: Live and Dead Loads Calculation: | AQ5: 20 x 16 | AR5: 1.7 | AS5: 5.125 | AT5: 10.25 | AU5: 5 | AV5: 27.5 | AX5: 20 | AY5: 16
C6: Arch Corrugated Metal Pipe | AQ6: 23 x 19 | AR6: 2.3 | AS6: 5.875 | AT6: 11.625 | AU6: 5.375 | AV6: 34.25 | AX6: 23 | AY6: 19
AC7: If impact factor = 1 + 0.33 [(96 – h)/96] ≥ 1.0 | AH7: =MAX((1+0.33*((96-'Arch Pipe - Cement.'!H30)/96)),1) -> 1.2475 | AN7: 1.2475 | AQ7: 24 x 18 | AR7: 2.2 | AS7: 5.625 | AT7: 11.875 | AU7: 4.875 | AV7: 34.625 | AX7: 24 | AY7: 18
C8: Project: | AC8: lw load width parallel to direction of travel (in) | AH8: =AH67 -> 37.6 | AN8: 37.6 | AQ8: 27 x 21 | AR8: 3 | AS8: 6.75 | AT8: 13.5 | AU8: 5.75 | AV8: 40.875 | AX8: 27 | AY8: 21
C9: Trial: | AQ9: 28 x 20 | AR9: 2.9 | AS9: 6.5 | AT9: 14 | AU9: 5.5 | AV9: 42.25 | AX9: 28 | AY9: 20
C10: Location: | AC10: hint (in) | AH10: =('Arch Pipe - Cement.'!H34-'Arch Pipe - Cement.'!H33-0.06*'Arch Pipe - Cement.'!H36)/'Arch Pipe - Cement.'!H31 -> 41.51304348 | AN10: 41.51304348 | AQ10: 33 x 26 | AR10: 4.7 | AS10: 8.75 | AT10: 16.625 | AU10: 7.125 | AV10: 51.375 | AX10: 33 | AY10: 26
C11: DOT: | D11: Select DOT | AC11: ww Load width perpendicular to direction of travel (in) | AH11: =IF('Arch Pipe - Cement.'!H30<'Arch Pipe - Cement.'!AH10,'Arch Pipe - Cement.'!H33+'Arch Pipe - Cement.'!H31*'Arch Pipe - Cement.'!H30+0.06*'Arch Pipe - Cement.'!H36,(('Arch Pipe - Cement.'!H33+'Arch Pipe - Cement.'!H34+'Arch Pipe - Cement.'!H31*'Arch Pipe - Cement.'!H30)+0.06*'Arch Pipe - Cement.'!H36)) -> 51.86 | AN11: 51.86 | AQ11: 35 x 24 | AR11: 4.5 | AS11: 8.125 | AT11: 17.875 | AU11: 6.875 | AV11: 55.125 | AX11: 35 | AY11: 24
C12: Latitude: | AA12: =IF('Arch Pipe - Cement.'!H30/12<'Arch Pipe - Cement.'!H39,'Arch Pipe - Cement.'!H30/12,'Arch Pipe - Cement.'!H39) -> 2 | AC12: PE earth load acting on the horizontal soil plane at the top of the pipe (psi) - No groundwater | AH12: ='Arch Pipe - Cement.'!H50*('Arch Pipe - Cement.'!H37*AA12-2*'Arch Pipe - Cement.'!H38)/144 -> 0.5282782309 | AN12: 4.930555556 | AQ12: 40 x 31 | AR12: 6.7 | AS12: 10.375 | AT12: 20.25 | AU12: 8.375 | AV12: 62.5 | AX12: 40 | AY12: 31
C13: Longitude: | AC13: PE earth load acting on the horizontal soil plane at the top of the pipe (psi) - With groundwater | AH13: =(('Arch Pipe - Cement.'!H50*AA12-'Arch Pipe - Cement.'!H41)*'Arch Pipe - Cement.'!H37+'Arch Pipe - Cement.'!H41*('Arch Pipe - Cement.'!H37-62.4))/144 -> 0.5282782309 | AN13: 4.930555556 | AQ13: 42 x 29 | AR13: 6.5 | AS13: 9.75 | AT13: 21.5 | AU13: 8.25 | AV13: 66.125 | AX13: 42 | AY13: 29
C14: Date: | AC14: Pw external hydrostatic pressure acting on the pipe (psi) | AH14: =0.433*('Arch Pipe - Cement.'!H41+'Arch Pipe - Cement.'!H42) -> 1.695916667 | AN14: 1.695916667 | AQ14: 46 x 36 | AR14: 9.2 | AS14: 12.375 | AT14: 23.25 | AU14: 9.75 | AV14: 73 | AX14: 46 | AY14: 36
AQ15: 49 x 33 | AR15: 8.9 | AS15: 11.375 | AT15: 25.125 | AU15: 9.625 | AV15: 77.25 | AX15: 49 | AY15: 33
C16: Input | AC16: Design (Cementitious Liner): | AQ16: 53 x 41 | AR16: 11.7 | AS16: 15.25 | AT16: 28.0625 | AU16: 10.1875 | AV16: 73.4375 | AX16: 53 | AY16: 41
C17: Output | AQ17: 57 x 38 | AR17: 11.6 | AS17: 13 | AT17: 28.625 | AU17: 11 | AV17: 88.25 | AX17: 57 | AY17: 38
AC18: PE earth load acting on the horizontal soil plane at the top of the pipe (psi) | AH18: =IF('Arch Pipe - Cement.'!H41=0,'Arch Pipe - Cement.'!AH12,'Arch Pipe - Cement.'!AH13) -> 0.5282782309 | AN18: 4.930555556 | AQ18: 60 x 46 | AR18: 15.6 | AS18: 20.5 | AT18: 29.375 | AU18: 18.75 | AV18: 51.125 | AX18: 60 | AY18: 46
C19: Live and Dead Loads Calculation: | AC19: CL live load distribution coefficient (in.), is equal to lw / S ≤ 1.0 | AH19: =MIN(AH8/'Arch Pipe - Cement.'!H25,1) -> 0.5295774648 | AN19: 0.6266666667 | AQ19: 64 x 43 | AR19: 14.7 | AS19: 14.625 | AT19: 32.25 | AU19: 12.375 | AV19: 99.25 | AX19: 64 | AY19: 43
AC20: Pw external hydrostatic pressure acting on the pipe (psi) | AH20: =IF('Arch Pipe - Cement.'!H41=0,0,'Arch Pipe - Cement.'!AH14) -> 0 | AN20: 0 | AQ20: 66 x 51 | AR20: 19.3 | AS20: 22.75 | AT20: 32.625 | AU20: 20.75 | AV20: 56.25 | AX20: 66 | AY20: 51
C21: Select Standard Pipe Arch Sizes | H21: 71 x 47 | I21: in. | AQ21: 71 x 47 | AR21: 18.1 | AS21: 16.25 | AT21: 35.75 | AU21: 13.75 | AV21: 110.25 | AX21: 71 | AY21: 47
AQ22: 73 x 55 | AR22: 23.2 | AS22: 25.125 | AT22: 36.75 | AU22: 22.875 | AV22: 63.75 | AX22: 73 | AY22: 55
C23: Pipe Arch - Top Radius | H23: =VLOOKUP(H21,'Arch Pipe - Cement.'!AQ2:AV34,4,FALSE) -> 35.75 | I23: in. | AC23: Single Span | AG23: =IF('Arch Pipe - Cement.'!H66<='Arch Pipe - Cement.'!H85,IF('Arch Pipe - Cement.'!H85<='Arch Pipe - Cement.'!H67,1,0),0) -> 1 | AH23: =IF('Arch Pipe - Cement.'!H66<='Arch Pipe - Cement.'!H98,IF('Arch Pipe - Cement.'!H98<='Arch Pipe - Cement.'!H67,1,0),0) -> 1 | AQ23: 77 x 52 | AR23: 21.9 | AS23: 17.875 | AT23: 39.375 | AU23: 15.125 | AV23: 121.25 | AX23: 77 | AY23: 52
C24: Pipe Arch - Bottom Radius | H24: =VLOOKUP(H21,'Arch Pipe - Cement.'!AQ2:AV34,6,FALSE) -> 110.25 | I24: in. | AC24: Multiple Span | AG24: =IF('Arch Pipe - Cement.'!H66<='Arch Pipe - Cement.'!H91,IF('Arch Pipe - Cement.'!H91<='Arch Pipe - Cement.'!H67,1,0),0) -> 1 | AH24: =IF('Arch Pipe - Cement.'!H66<='Arch Pipe - Cement.'!H104,IF('Arch Pipe - Cement.'!H104<='Arch Pipe - Cement.'!H67,1,0),0) -> 1 | AQ24: 81 x 59 | AR24: 27.4 | AS24: 23.75 | AT24: 39.5 | AU24: 20.875 | AV24: 82.625 | AX24: 81 | AY24: 59
C25: Pipe Arch - Span | H25: =VLOOKUP(H21,'Arch Pipe - Cement.'!AQ2:AX34,8,FALSE) -> 71 | I25: in. | AG25: =SUM(AG23:AG24) -> 2 | AQ25: 83 x 57 | AR25: 26 | AS25: 19.5 | AT25: 43 | AU25: 16.5 | AV25: 132.25 | AX25: 83 | AY25: 57
C26: Pipe Arch - Rise | H26: =VLOOKUP(H21,'Arch Pipe - Cement.'!AQ2:AY34,9,FALSE) -> 47 | I26: in. | AQ26: 87 x 63 | AR26: 32.1 | AS26: 25.75 | AT26: 43.375 | AU26: 22.625 | AV26: 92.25 | AX26: 87 | AY26: 63
AC27: Delaware Department of Transportation | AQ27: 95 x 67 | AR27: 37 | AS27: 27.75 | AT27: 47 | AU27: 24.375 | AV27: 100.25 | AX27: 95 | AY27: 67
C28: Mp Multiple Presence Factor, typically equal to 1.2 Refer to AASHTO LRFD Bridge Design Specifications, 8th Ed. Table 3.6.1.1.2.1. | H28: 1.2 | AC28: Florida Department of Transportation | AQ28: 103 x 71 | AR28: 42.4 | AS28: 29.75 | AT28: 51.25 | AU28: 26.125 | AV28: 111.625 | AX28: 103 | AY28: 71
C29: P Design Wheel Load Refer to AASHTO Bridge Desgin Specifications, 8th Ed., Section 3.6.1.2.6b. P Load is the weight an AASHTO design truck imposes on a single wheel (or pair of wheels in the case of dual wheels). Typical HL-93 Design Truck has 3 axles, front axle load of 8 kips, and two rear axles with a load of 32 kips each (rear wheel load of 16 kips each) | H29: 16000 | I29: lb | AC29: Minnesota Department of Transportation | AQ29: 112 x 75 | AR29: 48 | AS29: 31.625 | AT29: 54.875 | AU29: 27.75 | AV29: 120.25 | AX29: 112 | AY29: 75
C30: h Depth of Cover over Culvert Distance from top of the pipe to top of the soil | H30: 24 | I30: in. | AC30: New York State Department of Transportation | AQ30: 117 x 79 | AR30: 54.2 | AS30: 33.625 | AT30: 59.375 | AU30: 29.5 | AV30: 131.75 | AX30: 117 | AY30: 79
C31: LLDF Live Load Distribution Factor Refer to AASHTO Bridge Desgin Specifications, 8th Ed., table 3.6.1.2.6a-1 For Concrete Pipe with fill depth 2.0ft or greater, linearly interpolate between these limits: 1.15 for diameter 2.0ft or less 1.75 for diameters 8.0ft or greater All other culverts and buried structures: 1.15 | H31: 1.15 | M31: Figure 8-1 | AC31: North Carolina Department of Transportation | AQ31: 128 x 83 | AR31: 60.5 | AS31: 35.625 | AT31: 63.25 | AU31: 31.25 | AV31: 139.75 | AX31: 128 | AY31: 83
C32: lt Tire Patch Length Refer to AASHTO LRFD Bridge Design Specifications, 8th Ed. Section 3.6.1.2.5. | H32: 10 | I32: in. | AC32: Ohio Department of Transportation | AQ32: 137 x 87 | AR32: 67.4 | AS32: 37.625 | AT32: 67.375 | AU32: 33 | AV32: 149.5 | AX32: 137 | AY32: 87
C33: Wt Tire Patch Width Refer to AASHTO LRFD Bridge Design Specifications, 8th Ed. Section 3.6.1.2.5. | H33: 20 | I33: in. | AC33: Pennsylvania Department of Transportation | AQ33: 142 x 91 | AR33: 74.5 | AS33: 39.5 | AT33: 71.625 | AU33: 34.75 | AV33: 162.375 | AX33: 142 | AY33: 91
C34: Sw Spacing between the Wheel Pairs on the Axle Refer to AASHTO LRFD Bridge Design Specifications, 8th Ed. Section 3.6.1.2.3. | H34: 72 | I34: in. | AC34: Select DOT
C35: Sa Axle Spacing Refer to AASHTO LRFD Bridge Design Specifications, 8th Ed. Section 3.6.1.2.3. | H35: 48 | I35: in.
C36: Span Clear span of the culvert (in) See figure 8-2 | H36: =H25 -> 71
C37: δsoil Soil Unit Weight | H37: 120 | I37: pcf
C38: c Soil Cohesion Cohesion per ASCE Manual of Practice (MOP) 60. Standard values: Clay, very soft: 40 psf Clay, medium: 250 psf Clay, hard: 1,000 psf Sand, loose dry: 0 psf Sand, silty: 100 psf Sand, dense: 300 psf | H38: 0 | I38: psf | M38: Figure 8-2 | AA38: -2kµ'H/Bc | AC38: =-2*'Arch Pipe - Cement.'!H40*'Arch Pipe - Cement.'!H30/('Arch Pipe - Cement.'!H39*12) -> -0.1300732394
C39: Bc outside span length of the liner (ft) | H39: =H36/12 -> 5.916666667 | M39: Figure 8-1
C40: kµ' Select kµ' - Refer to Figure 9-13 in ASCE MOP 60 kµ'=0.1924 min for granular material without cohesion kµ'=0.165 max for sand and gravel kµ'=0.150 max for saturated top soil kµ'=0.130 max for ordinary clay kµ'=0.110 max for saturated clay | H40: 0.1924
C41: Hw Height of the Groundwater above the Top of the Pipe Hw = 0 if no groundwater | H41: 0 | I41: ft
C42: Hr height of the vertical dimension of the pipe (ft). | H42: =H26/12 -> 3.916666667
AC43: Select kµ' | AE43: =IF(C55="Note: The effects of live load is neglected.",0,1) -> 1 | AG43: Yes
C44: Select if it is a Single Span culvert or Multiple Span culverts? | H44: Single Span | M44: Figure 8-3 | AC44: 0.1924 | AG44: No
AC45: 0.165
C46: =IF(H44="Single Span","","Specify the distance between inside faces of end walls perpendicular to roadway") ->  | H46: 0 | I46: =IF(H44="Single Span","","ft") ->  | AC46: 0.15
AC47: 0.13
C48: Live and Dead Loads Results: | AC48: 0.11
C50: Ct Coefficient (Figure 9-13 in ASCE MOP 60) | H50: =(1-EXP('Arch Pipe - Cement.'!AC38))/(2*H40) -> 0.3169669385
C51: PL Live Load on Pipe | H51: =IF(H44="Single Span",IF(H30<=96,(H28*H29*'Arch Pipe - Cement.'!AH7)/('Arch Pipe - Cement.'!AH8*'Arch Pipe - Cement.'!AH11),0),IF(H30<=(H46*12),(H28*H29*'Arch Pipe - Cement.'!AH7)/('Arch Pipe - Cement.'!AH8*'Arch Pipe - Cement.'!AH11),0)) -> 12.28348007 | I51: psi
C52: PE Earth Load acting on the Horizontal Soil Plane at the Top of the Pipe | H52: ='Arch Pipe - Cement.'!AH18 -> 0.5282782309 | I52: psi
C53: Pw External Hydrostatic Pressure acting on the Pipe | H53: ='Arch Pipe - Cement.'!AH20 -> 0 | I53: psi
C55: =IF(H44="Single Span",IF(H30<=96,"","Note: The effects of live load is neglected."),IF(H30<=(H46*12),"","Note: The effects of live load is neglected.")) -> 
C56: =IF(H44="Single Span",IF(H30<=96,"","Per AASHTO LRFD Bridge Design Specifications, 8th Ed, Section 3.6.1.2.6a: For single-span culverts, the effects of live load may be neglected where the depth of fill is more than 8.0 ft. and exceeds the span length."),IF(H30<=(H46*12),"","Per AASHTO LRFD Bridge Design Specifications, 8th Ed, Section 3.6.1.2.6a: For multiple span culverts, the effects of live load may be neglected where the depth of fill exceeds the distance between inside faces of end walls.")) -> 
C59: Design Assumptions (Cementitious Liner):
C61: t Wall Thickness of the Liner - See figure 8-3 Note: Wall thickness is above the corrugation crests. | H61: 1 | I61: in.
C62: Assume only the liner above the corrugation crests is effective? Select Yes or No | H62: No
C63: =IF(H62="No","c Distance from the Centroid of the Liner Pipe Wall Profile to the Interior Wall Surface - See figure 8-3","") -> c Distance from the Centroid of the Liner Pipe Wall Profile to the Interior Wall Surface - See figure 8-3 | H63: 0.637 | I63: =IF(H62="No","in.","") -> in. | T63: =IF(H62="Yes",0.5*H61,H63) -> 0.637 | U63: in.
C64: =IF(H62="No","I SAPL Area Moment of Inertia of the Liner Wall Section","") -> I SAPL Area Moment of Inertia of the Liner Wall Section | H64: 0.1814 | I64: =IF(H62="No","in.4/in","") -> in.4/in | T64: =IF(H62="Yes",(H61^3)/12,H64) -> 0.1814 | U64: in.4/in.
AC65: H.in Parallel | AH65: =(H35-H32)/H31 -> 33.04347826
C66: σCS Compressive Stress Strength of the Liner Material Compressive strength value to be provided by manufacturer in accordance with Pipe Liner Special Provision. | H66: -8390 | I66: psi
C67: σflex Flexural Stress Strength (Modulus of Rupture) of the Liner Material Flexural strength value to be provided by manufacturer in accordance with Pipe Liner Special Provision. | H67: 1665 | I67: psi | AH67: =IF(H30<AH65,H32+H31*H30,H32+H35+H31*H30) -> 37.6
C68: γEV Load Factor for Soil Prism Load - Service, 1.0 | H68: 1
C69: γEV Load Factor for Soil Prism Load - Strength, 1.30 | H69: 1.3
C70: γWA Load Factor for Groundwater Load, 1.0 | H70: 1
C71: γLL Load Factor for Live Load - Service, 1.0 | H71: 1
C72: γLL Load Factor for Live Load - Strength, 1.75 | H72: 1.75
C73: ƞEV Load Modifier for Soil Prism Load, use 1.0 per Article 1.3.2 of the BDS | H73: 1
C74: ƞR Load Modifier for Redundancy, 1.05 for Strength Limit State under Earth Loads | H74: 1.05
C75: ƞR Load Modifier for Redundancy, 1.0 for Strength Limit State under Live Loads | H75: 1
C76: ƞLL Load Modifier for Live Load, use 1.0 per Article 1.3.2 of the BDS | H76: 1
C78: Results (Cementitious Liner)
C80: Service
C81: Top Radius
C82: Tservice Thrust in Liner | H82: =0.8323*(H68*H52+'Arch Pipe - Cement.'!AH19*'Arch Pipe - Cement.'!H71*H51)*H23+H53 -> 209.2748734 | I82: lb/in.
C83: A Area of the Cross-Section of the proposed Liner per linear inch | H83: =H61 -> 1 | I83: in.2/in.
C84: Mservice Moment | H84: =0.0062*'Arch Pipe - Cement.'!AH19*'Arch Pipe - Cement.'!H71*H51*(H23^2) -> 51.54596845 | I84: in.-lbs/in.
C85: σcrown Normal Stress (Service) | H85: =(-(H82/H83))+((H84*T63)/T64) -> -28.26725539 | I85: psi | J85: =IF(H85>=H66,IF(H85<=H67,"Stress within limits. The "&H61&"-in. thick liner is sufficient.","Stress exceeds limits. The "&H61&"-in. thick liner is not sufficient."),"Stress exceeds limits. The "&H61&"-in. thick liner is not sufficient.") -> Stress within limits. The 1-in. thick liner is sufficient.
C87: Bottom Radius
C88: Tservice Thrust in Liner | H88: =0.8323*(H23/H24)*(H68*H52+'Arch Pipe - Cement.'!AH19*'Arch Pipe - Cement.'!H71*H51)*H25*0.5+H53 -> 67.38556014 | I88: lb/in.
C89: A Area of the Cross-Section of the proposed Liner per linear inch | H89: =H61 -> 1 | I89: in.2/in.
C90: Mservice Moment | H90: =0.0062*(H23/H24)*'Arch Pipe - Cement.'!AH19*'Arch Pipe - Cement.'!H71*H51*((H25*0.5)^2) -> 16.48150116 | I90: in.-lbs/in.
C91: σcrown Normal Stress (Service) | H91: =(-(H88/H89))+((H90*T63)/T64) -> -9.509505886 | I91: psi | J91: =IF(H91>=H66,IF(H91<=H67,"Stress within limits. The "&H61&"-in. thick liner is sufficient.","Stress exceeds limits. The "&H61&"-in. thick liner is not sufficient."),"Stress exceeds limits. The "&H61&"-in. thick liner is not sufficient.") -> Stress within limits. The 1-in. thick liner is sufficient.
C93: Strength
C94: Top Radius
C95: Tstrength Thrust in Liner | H95: =0.8323*(H69*H73*H74*H52+'Arch Pipe - Cement.'!AH19*'Arch Pipe - Cement.'!H51*H72*H76*H75)*H23+H70*H53 -> 360.1793006 | I95: lb/in.
C96: A Area of the Cross-Section of the proposed Liner per linear inch | H96: =H61 -> 1 | I96: in.2/in.
C97: Mstrengthe moment | H97: =0.0062*'Arch Pipe - Cement.'!AH19*'Arch Pipe - Cement.'!H51*H72*H76*H75*(H23^2) -> 90.20544479 | I97: in.-lbs/in.
C98: σcrown Normal Stress (Strength) | H98: =(-(H95/H96))+((H97*T63)/T64) -> -43.41596914 | I98: psi | J98: =IF(H98>=H66,IF(H98<=H67,"Stress within limits. The "&H61&"-in. thick liner is sufficient.","Stress exceeds limits. The "&H61&"-in. thick liner is not sufficient."),"Stress exceeds limits. The "&H61&"-in. thick liner is not sufficient.") -> Stress within limits. The 1-in. thick liner is sufficient.
C100: Bottom Radius
C101: Tstrength Thrust in Liner | H101: =0.8323*(H23/H24)*(H69*H73*H74*H52+'Arch Pipe - Cement.'!AH19*'Arch Pipe - Cement.'!H51*H72*H76*H75)*H25*0.5+H70*H53 -> 115.9761013 | I101: lb/in.
C102: A Area of the Cross-Section of the proposed Liner per linear inch | H102: =H61 -> 1 | I102: in.2/in.
C103: Mstrengthe Moment | H103: =0.0062*(H23/H24)*'Arch Pipe - Cement.'!AH19*'Arch Pipe - Cement.'!H51*H72*H76*H75*((H25*0.5)^2) -> 28.84262704 | I103: in.-lbs/in.
C104: σcrown Normal Stress (Strength) | H104: =(-(H101/H102))+((H103*T63)/T64) -> -14.6930064 | I104: psi | J104: =IF(H104>=H66,IF(H104<=H67,"Stress within limits. The "&H61&"-in. thick liner is sufficient.","Stress exceeds limits. The "&H61&"-in. thick liner is not sufficient."),"Stress exceeds limits. The "&H61&"-in. thick liner is not sufficient.") -> Stress within limits. The 1-in. thick liner is sufficient.

Sheet Circular Pipe - Polym.
C3: SAPL Design | AB3: Circular Pipe - Polymeric
C5: Structural Design for Liner Thickness Using Flexible Polymeric Materials | AC5: Live and Dead Loads Calculation:
C6: Circular Corrugated Metal Pipe
AC7: If impact factor = 1 + 0.33 [(96 – h)/96] ≥ 1.0 | AH7: =MAX((1+0.33*((96-'Circular Pipe - Polym.'!H23)/96)),1) -> 1.2475
C8: Project: | AC8: lw load width parallel to direction of travel (in) | AH8: =AH25 -> 37.6
C9: Trial:
C10: Location: | AC10: hint (in) | AH10: =('Circular Pipe - Polym.'!H27-'Circular Pipe - Polym.'!H26-0.06*'Circular Pipe - Polym.'!H29)/'Circular Pipe - Polym.'!H24 -> 42.08695652
C11: DOT: | D11: Select DOT | AC11: ww Load width perpendicular to direction of travel (in) | AH11: =IF('Circular Pipe - Polym.'!H23<'Circular Pipe - Polym.'!AH10,'Circular Pipe - Polym.'!H26+'Circular Pipe - Polym.'!H24*'Circular Pipe - Polym.'!H23+0.06*'Circular Pipe - Polym.'!H29,(('Circular Pipe - Polym.'!H26+'Circular Pipe - Polym.'!H27+'Circular Pipe - Polym.'!H24*'Circular Pipe - Polym.'!H23)+0.06*'Circular Pipe - Polym.'!H29)) -> 51.2
C12: Latitude: | AA12: =IF('Circular Pipe - Polym.'!H23/12<'Circular Pipe - Polym.'!H32,'Circular Pipe - Polym.'!H23/12,'Circular Pipe - Polym.'!H32) -> 2 | AC12: PE earth load acting on the horizontal soil plane at the top of the pipe (psi) - No groundwater | AH12: ='Circular Pipe - Polym.'!H43*('Circular Pipe - Polym.'!H30*AA12-2*'Circular Pipe - Polym.'!H31)/144 -> 0.6178941203
C13: Longitude: | AC13: PE earth load acting on the horizontal soil plane at the top of the pipe (psi) - With groundwater | AH13: =(('Circular Pipe - Polym.'!H43*AA12-'Circular Pipe - Polym.'!H34)*'Circular Pipe - Polym.'!H30+'Circular Pipe - Polym.'!H34*('Circular Pipe - Polym.'!H30-62.4))/144 -> 0.6178941203
C14: Date: | AC14: Pw external hydrostatic pressure acting on the pipe (psi) | AH14: =0.433*('Circular Pipe - Polym.'!H34+'Circular Pipe - Polym.'!H35) -> 2.165
C16: Input
C17: Output | AC17: Design (Cementitious Liner):
C19: Live and Dead Loads Calculation: | AC19: PE earth load acting on the horizontal soil plane at the top of the pipe (psi) | AH19: =IF('Circular Pipe - Polym.'!H34=0,'Circular Pipe - Polym.'!AH12,'Circular Pipe - Polym.'!AH13) -> 0.6178941203
AC20: CL live load distribution coefficient (in.), is equal to lw / S ≤ 1.0 | AH20: =MIN(AH8/'Circular Pipe - Polym.'!H65,1) -> 0.6266666667
C21: Mp Multiple Presence Factor, typically equal to 1.2 Refer to AASHTO LRFD Bridge Design Specifications, 8th Ed. Table 3.6.1.1.2.1. | H21: 1.2 | AC21: Pw external hydrostatic pressure acting on the pipe (psi) | AH21: =IF('Circular Pipe - Polym.'!H34=0,0,'Circular Pipe - Polym.'!AH14) -> 0
C22: P Design Wheel Load Refer to AASHTO Bridge Desgin Specifications, 8th Ed., Section 3.6.1.2.6b. P Load is the weight an AASHTO design truck imposes on a single wheel (or pair of wheels in the case of dual wheels). Typical HL-93 Design Truck has 3 axles, front axle load of 8 kips, and two rear axles with a load of 32 kips each (rear wheel load of 16 kips each) | H22: 16000 | I22: lb
C23: h Depth of Cover over Culvert Distance from top of the pipe to top of the soil | H23: 24 | I23: in.
C24: LLDF Live Load Distribution Factor Refer to AASHTO Bridge Desgin Specifications, 8th Ed., table 3.6.1.2.6a-1 For Concrete Pipe with fill depth 2.0ft or greater, linearly interpolate between these limits: 1.15 for diameter 2.0ft or less 1.75 for diameters 8.0ft or greater All other culverts and buried structures: 1.15 | H24: 1.15 | AC24: H.in Parallel | AH24: =(H28-H25)/H24 -> 33.04347826
C25: lt Tire Patch Length Refer to AASHTO LRFD Bridge Design Specifications, 8th Ed. Section 3.6.1.2.5. | H25: 10 | I25: in. | M25: Figure 8-1 | AH25: =IF(H23<AH24,H25+H24*H23,H25+H28+H24*H23) -> 37.6
C26: Wt Tire Patch Width Refer to AASHTO LRFD Bridge Design Specifications, 8th Ed. Section 3.6.1.2.5. | H26: 20 | I26: in.
C27: Sw Spacing between the Wheel Pairs on the Axle Refer to AASHTO LRFD Bridge Design Specifications, 8th Ed. Section 3.6.1.2.3. | H27: 72 | I27: in.
C28: Sa Axle Spacing Refer to AASHTO LRFD Bridge Design Specifications, 8th Ed. Section 3.6.1.2.3. | H28: 48 | I28: in.
C29: Di Inside Diameter or Clear Span of the Culvert | H29: 60 | I29: in.
C30: δsoil Soil Unit Weight | H30: 120 | I30: pcf
C31: c Soil Cohesion Cohesion per ASCE Manual of Practice (MOP) 60. Standard values: Clay, very soft: 40 psf Clay, medium: 250 psf Clay, hard: 1,000 psf Sand, loose dry: 0 psf Sand, silty: 100 psf Sand, dense: 300 psf | H31: 0 | I31: psf
C32: Bc O.D. or outside span length of the liner (ft) | H32: =H29/12 -> 5
C33: kµ' Select kµ' - Refer to Figure 9-13 in ASCE MOP 60 kµ'=0.1924 min for granular material without cohesion kµ'=0.165 max for sand and gravel kµ'=0.150 max for saturated top soil kµ'=0.130 max for ordinary clay kµ'=0.110 max for saturated clay | H33: 0.1924 | M33: Figure 8-2
C34: Hw Height of the Groundwater above the Top of the Pipe See figure 8-2 Hw = 0 if no groundwater | H34: 0 | I34: ft
C35: Hr height of the vertical dimension of the pipe (ft). | H35: =H29/12 -> 5
C37: Select if it is a Single Span culvert or Multiple Span culverts? | H37: Single Span
C39: =IF(H37="Single Span","","Specify the distance between inside faces of end walls perpendicular to roadway") ->  | H39: 0 | I39: =IF(H37="Single Span","","ft") ->  | M39: Figure 8-3 | AC39: Single Span
AC40: Multiple Span
C41: Live and Dead Loads Results:
C43: Ct Coefficient (Figure 9-13 in ASCE MOP 60) | H43: =(1-EXP('Circular Pipe - Polym.'!AC56))/(2*H33) -> 0.3707364722 | AC43: Delaware Department of Transportation
C44: PL Live Load on Pipe | H44: =IF(H37="Single Span",IF(H23<=96,(H21*H22*'Circular Pipe - Polym.'!AH7)/('Circular Pipe - Polym.'!AH8*'Circular Pipe - Polym.'!AH11),0),IF(H23<=(H39*12),(H21*H22*'Circular Pipe - Polym.'!AH7)/('Circular Pipe - Polym.'!AH8*'Circular Pipe - Polym.'!AH11),0)) -> 12.44182181 | I44: psi | AC44: Florida Department of Transportation
C45: PE Earth Load acting on the Horizontal Soil Plane at the Top of the Pipe | H45: ='Circular Pipe - Polym.'!AH19 -> 0.6178941203 | I45: psi | AC45: Minnesota Department of Transportation
C46: Pw External Hydrostatic Pressure Acting on the Pipe | H46: ='Circular Pipe - Polym.'!AH21 -> 0 | I46: psi | AC46: New York State Department of Transportation
AC47: North Carolina Department of Transportation
C48: =IF(H37="Single Span",IF(H23<=96,"","Note: The effects of live load is neglected."),IF(H23<=(H39*12),"","Note: The effects of live load is neglected.")) ->  | AC48: Ohio Department of Transportation
C49: =IF(H37="Single Span",IF(H23<=96,"","Per AASHTO LRFD Bridge Design Specifications, 8th Ed, Section 3.6.1.2.6a: For single-span culverts, the effects of live load may be neglected where the depth of fill is more than 8.0 ft. and exceeds the span length."),IF(H23<=(H39*12),"","Per AASHTO LRFD Bridge Design Specifications, 8th Ed, Section 3.6.1.2.6a: For multiple span culverts, the effects of live load may be neglected where the depth of fill exceeds the distance between inside faces of end walls.")) ->  | AC49: Pennsylvania Department of Transportation
AC50: Select DOT
C51: Design Assumptions (Flexible Polymeric Liner):
C53: Deflection Verification
C55: Do outside diameter of liner (in) | H55: =H29 -> 60
C56: Di inner diameter of the liner | H56: =H55 -> 60 | AA56: -2kµ'H/Bc | AC56: =-2*'Circular Pipe - Polym.'!H33*'Circular Pipe - Polym.'!H23/('Circular Pipe - Polym.'!H32*12) -> -0.15392
C57: t Wall Thickness of the Liner - See figure 8-3 Note: Wall thickness is above the corrugation crests. | H57: 1.2 | I57: in.
C58: ISAPL Moment of Inertia of Liner Profile per unit length of Liner | H58: 0.0456 | I58: in4/in
C59: DL Deflection Lag Factor, a value of 1.0 is recommended for rehabilitation lining Refer to AASHTO LRFD Bridge Design Manual, 8th Ed., Section 12.12.2.2 | H59: 1
C60: KB Bedding Coefficient, a value of 0.083 is recommended for rehabilitation lining Refer to AASHTO LRFD Bridge Design Manual, 8th Ed., Section 12.12.2.2 | H60: 0.083
C61: ESAPL Short-Term Circumferential Flexural Modulus of Liner Material For determining long term and short term modulus of elasticity, use ASTM D790 standard test methods for short term, and ASTM D2990 standard test methods for long term. In the absence of the ASTM D2990 standard tests, it is a common practice to use 50% of the short term modulus of elasticity as a value for the long term modulus of elasticity. | H61: 735 | I61: ksi
C63: R radius of liner measured to the centroid of liner profile | H63: =(H55-H57)*0.5 -> 29.4 | I63: in.
C64: Ms Secant Constrained Soil Modulus, as specified in Article 12.12.3.5 A conservative value for Ms is 0.503, which assumes sandy soil at 85% compaction. Alternately, use the Pe value above to determine Ms from Table 12.12.3.5-1 of AASHTO LRFD Bridge Design Specifications. | H64: 0.503 | I64: ksi
C65: S span of culvert (in) | H65: =H55 -> 60
C66: ΔA Maximum Percentage of the Allowable Deflection [ ΔA = % x Di ] | H66: 0.05 | I66: %
C67: Results | AC67: Select kµ' | AE67: =IF(C48="Note: The effects of live load is neglected.",0,1) -> 1
C68: ΔA Total Allowable Deflection of Liner, Reduction in Vertical Diameter | H68: =H66*H56 -> 3 | I68: in. | AC68: 0.1924
C69: Δt Total Deflection of the Pipe, expressed as a Reduction of the Vertical Diameter | H69: =((H60*(H59*H45+'Circular Pipe - Polym.'!AH20*'Circular Pipe - Polym.'!H44)*'Circular Pipe - Polym.'!H55))/(1000*(((H61*H58/(H63^3))+0.061*H64))) -> 1.309470903 | I69: in. | J69: =IF(H69<=H68,"Δt ≤ Δa - Deflection within limits","Δt > Δa - Deflection exceeds limit") -> Δt ≤ Δa - Deflection within limits | AC69: 0.165
AC70: 0.15
C71: Design Assumptions (Flexible Polymeric Liner): | AC71: 0.13
AC72: 0.11
C73: Strength limit state for global buckling
C75: γWA Load Factor for Hydrostatic Pressure, as per Article 3.4.1, use 1.0 | H75: 1
C76: γEV Load Factor for Vertical Pressure from Dead Load of Earth Fill, recommend 1.3 for rehab See Table 3.4.1-2 of AASHTO LRFD Bridge Design Specifications for the range of possible values. Values range from 1.95 to 0.9 for Thermoplastic Pipe, with 1.95 being more conservative. | H76: 1.3
C77: γLL Load Factor for Live Load , as specified in Article 3.4.1 | H77: 1.75
C78: ƞEV Load Modifier for Vertical Pressure from Dead Load of Earth Fill on a Buried Structure per Article 1.3.2, recommend 1.0 for rehab | H78: 1
C79: ƞLL Load Modifier as Specified in Article 1.3.2, as they apply to live loads on culverts use 1.0 per Article 1.3.2 | H79: 1
C80: RW water buoyancy factor (0.67 minimum) = 1-0.33 (HW/H) | H80: =MAX(0.67,1-0.33*(H34/(H23/12))) -> 1
C81: r mean radius of liner = (OD-t)/2 (in) | H81: =(H55-H57)*0.5 -> 29.4
C82: Cn Scalar Calibration Factor, 0.55 | H82: 0.55
C83: ϕs Resistance Factor of the Soil to account for variability, 0.9 Refer to AASHTO LRFD Bridge Design Specifications 8th ed. Table 12.5.5-1. | H83: 0.9
C84: ϕbck Resistance Factor for Global Buckling as defined in Table 12.5.5-1, use 0.70 | H84: 0.7
C85: ESAPL Long-Term Circumferential Flexural Modulus of Liner Material For determining long term and short term modulus of elasticity, use ASTM D790 standard test methods for short term, and ASTM D2990 standard test methods for long term. In the absence of the ASTM D2990 standard tests, it is a common practice to use 50% of the short term modulus of elasticity as a value for the long term modulus of elasticity. | H85: 529 | I85: ksi
C86: ν Poisson's Ratio of the Soil, 0.3 | H86: 0.3
C88: Results
C89: εfb Factored Buckling Strain Demand | H89: =((H75*H78*H34*0.433+H76*H78*H45*H80+H77*H79*'Circular Pipe - Polym.'!AH20*H44)*H81)/(1000*H85*H57) -> 0.0006691322181 | I89: in./in.
C90: εbck Nominal Strain Capacity for Buckling | H90: =(1.2*H82*((H85*H58)^(1/3))*(((H83*H64*(1-2*H86))/((1-H86)^2))^(2/3))*(11.4/(11+(H55/H23))))/(H57*H85) -> 0.001306375045 | I90: in./in. | J90: =IF(H89<=(H84*H90),"The strength buckling limit state is satisfied by the "&H57&" inch-thick liner","The strength buckling limit state is Not satisfied by the "&H57&" inch-thick liner") -> The strength buckling limit state is satisfied by the 1.2 inch-thick liner
J91: =IF(H23<=2*H55,"","Note: depth of fill over top of pipe (H) = "&H23&" in. used to calculate εbck is greater than two times the OD") -> 
C92: Design Assumptions (Flexible Polymeric Liner):
C94: Strength limit state for flexure
C96: ϕf Resistance Factor for Flexure, 0.90 (Table 12.5.5-1, BDS) | H96: 0.9
C97: Sb Long-Term Ring-Bending Strain for Product under Design per the Manufacturer's Testing Sb is obtained from manufacturer's ASTM D5365 test results. | H97: 0.013
C98: Df Shape Factor (dimensionless) See Table 12.12.3.10.2b-1 of AASHTO LRFD Bridge Design Specifications A conservative value is 5.5 for poorly compacted gravel. | H98: 5.5
C100: Results
C101: εf Factored Long-Term Strain due to Flexure | H101: =H76*H98*(H57/(H63*2))*(H68/(2*H63)) -> 0.007444814661
C102: ϕf Sb | H102: =H96*H97 -> 0.0117 | J102: =IF(H101<=H102,"εf ≤ ϕf Sb: The long-term strain due to the estimated deflection is acceptable","εf > ϕf Sb: The long-term strain due to the estimated deflection is not acceptable") -> εf ≤ ϕf Sb: The long-term strain due to the estimated deflection is acceptable

Sheet Arch Pipe - Polym.
C3: SAPL Design | AB3: Arch Pipe - Polymeric | AM3: Pipe Arch Size (in.) | AN3: Cross-sectional Area (ft2) | AO3: Springline Rise, B (in) | AP3: Top Radius (in) | AQ3: Bottom Corner Radius (in) | AR3: Bottom Radius (in)
AM4: 17 x 13 | AN4: 1.1 | AO4: 4.125 | AP4: 8.625 | AQ4: 3.5 | AR4: 25.625 | AT4: 17 | AU4: 13
C5: Structural Design for Liner Thickness Using Flexible Polymeric Materials | AC5: Live and Dead Loads Calculation: | AM5: 21 x 15 | AN5: 1.6 | AO5: 4.875 | AP5: 10.75 | AQ5: 4.125 | AR5: 33.125 | AT5: 21 | AU5: 15
C6: Arch Corrugated Metal Pipe | AM6: 20 x 16 | AN6: 1.7 | AO6: 5.125 | AP6: 10.25 | AQ6: 5 | AR6: 27.5 | AT6: 20 | AU6: 16
AC7: If impact factor = 1 + 0.33 [(96 – h)/96] ≥ 1.0 | AH7: =MAX((1+0.33*((96-'Arch Pipe - Polym.'!H30)/96)),1) -> 1.2475 | AM7: 23 x 19 | AN7: 2.3 | AO7: 5.875 | AP7: 11.625 | AQ7: 5.375 | AR7: 34.25 | AT7: 23 | AU7: 19
C8: Project: | AC8: lw load width parallel to direction of travel (in) | AH8: =AH70 -> 37.6 | AM8: 24 x 18 | AN8: 2.2 | AO8: 5.625 | AP8: 11.875 | AQ8: 4.875 | AR8: 34.625 | AT8: 24 | AU8: 18
C9: Trial: | AM9: 27 x 21 | AN9: 3 | AO9: 6.75 | AP9: 13.5 | AQ9: 5.75 | AR9: 40.875 | AT9: 27 | AU9: 21
C10: Location: | AC10: hint (in) | AH10: =('Arch Pipe - Polym.'!H34-'Arch Pipe - Polym.'!H33-0.06*'Arch Pipe - Polym.'!H36)/'Arch Pipe - Polym.'!H31 -> 41.51304348 | AM10: 28 x 20 | AN10: 2.9 | AO10: 6.5 | AP10: 14 | AQ10: 5.5 | AR10: 42.25 | AT10: 28 | AU10: 20
C11: DOT: | D11: Select DOT | AC11: ww Load width perpendicular to direction of travel (in) | AH11: =IF('Arch Pipe - Polym.'!H30<'Arch Pipe - Polym.'!AH10,'Arch Pipe - Polym.'!H33+'Arch Pipe - Polym.'!H31*'Arch Pipe - Polym.'!H30+0.06*'Arch Pipe - Polym.'!H36,(('Arch Pipe - Polym.'!H33+'Arch Pipe - Polym.'!H34+'Arch Pipe - Polym.'!H31*'Arch Pipe - Polym.'!H30)+0.06*'Arch Pipe - Polym.'!H36)) -> 51.86 | AM11: 33 x 26 | AN11: 4.7 | AO11: 8.75 | AP11: 16.625 | AQ11: 7.125 | AR11: 51.375 | AT11: 33 | AU11: 26
C12: Latitude: | AA12: =IF('Arch Pipe - Polym.'!H30/12<'Arch Pipe - Polym.'!H39,'Arch Pipe - Polym.'!H30/12,'Arch Pipe - Polym.'!H39) -> 2 | AC12: PE earth load acting on the horizontal soil plane at the top of the pipe (psi) - No groundwater | AH12: ='Arch Pipe - Polym.'!H50*('Arch Pipe - Polym.'!H37*AA12-2*'Arch Pipe - Polym.'!H38)/144 -> 0.5282782309 | AM12: 35 x 24 | AN12: 4.5 | AO12: 8.125 | AP12: 17.875 | AQ12: 6.875 | AR12: 55.125 | AT12: 35 | AU12: 24
C13: Longitude: | AC13: PE earth load acting on the horizontal soil plane at the top of the pipe (psi) - With groundwater | AH13: =(('Arch Pipe - Polym.'!H50*AA12-'Arch Pipe - Polym.'!H41)*'Arch Pipe - Polym.'!H37+'Arch Pipe - Polym.'!H41*('Arch Pipe - Polym.'!H37-62.4))/144 -> 0.5282782309 | AM13: 40 x 31 | AN13: 6.7 | AO13: 10.375 | AP13: 20.25 | AQ13: 8.375 | AR13: 62.5 | AT13: 40 | AU13: 31
C14: Date: | AC14: Pw external hydrostatic pressure acting on the pipe (psi) | AH14: =0.433*('Arch Pipe - Polym.'!H41+'Arch Pipe - Polym.'!H42) -> 1.695916667 | AM14: 42 x 29 | AN14: 6.5 | AO14: 9.75 | AP14: 21.5 | AQ14: 8.25 | AR14: 66.125 | AT14: 42 | AU14: 29
AM15: 46 x 36 | AN15: 9.2 | AO15: 12.375 | AP15: 23.25 | AQ15: 9.75 | AR15: 73 | AT15: 46 | AU15: 36
C16: Input | AM16: 49 x 33 | AN16: 8.9 | AO16: 11.375 | AP16: 25.125 | AQ16: 9.625 | AR16: 77.25 | AT16: 49 | AU16: 33
C17: Output | AC17: Design (Cementitious Liner): | AM17: 53 x 41 | AN17: 11.7 | AO17: 15.25 | AP17: 28.0625 | AQ17: 10.1875 | AR17: 73.4375 | AT17: 53 | AU17: 41
AM18: 57 x 38 | AN18: 11.6 | AO18: 13 | AP18: 28.625 | AQ18: 11 | AR18: 88.25 | AT18: 57 | AU18: 38
C19: Live and Dead Loads Calculation: | AC19: PE earth load acting on the horizontal soil plane at the top of the pipe (psi) | AH19: =IF('Arch Pipe - Polym.'!H41=0,'Arch Pipe - Polym.'!AH12,'Arch Pipe - Polym.'!AH13) -> 0.5282782309 | AM19: 60 x 46 | AN19: 15.6 | AO19: 20.5 | AP19: 29.375 | AQ19: 18.75 | AR19: 51.125 | AT19: 60 | AU19: 46
AC20: CL live load distribution coefficient (in.), is equal to lw / S ≤ 1.0 | AH20: =MIN(AH8/'Arch Pipe - Polym.'!H25,1) -> 0.5295774648 | AM20: 64 x 43 | AN20: 14.7 | AO20: 14.625 | AP20: 32.25 | AQ20: 12.375 | AR20: 99.25 | AT20: 64 | AU20: 43
C21: Select Standard Pipe Arch Sizes | H21: 71 x 47 | I21: in. | AC21: Pw external hydrostatic pressure acting on the pipe (psi) | AH21: =IF('Arch Pipe - Polym.'!H41=0,0,'Arch Pipe - Polym.'!AH14) -> 0 | AM21: 66 x 51 | AN21: 19.3 | AO21: 22.75 | AP21: 32.625 | AQ21: 20.75 | AR21: 56.25 | AT21: 66 | AU21: 51
AM22: 71 x 47 | AN22: 18.1 | AO22: 16.25 | AP22: 35.75 | AQ22: 13.75 | AR22: 110.25 | AT22: 71 | AU22: 47
C23: Pipe Arch - Top Radius | H23: =VLOOKUP(H21,AM3:AR37,4,FALSE) -> 35.75 | I23: in. | AC23: P = (0.433∙Hw ) + Rtop/Rbottom (PE/144+CL∙PL) (psi) | AH23: =0.433*'Arch Pipe - Polym.'!H41+('Arch Pipe - Polym.'!H23/'Arch Pipe - Polym.'!H24)*('Arch Pipe - Polym.'!H52+'Arch Pipe - Polym.'!AH20*'Arch Pipe - Polym.'!H51) -> 2.280649757 | AM23: 73 x 55 | AN23: 23.2 | AO23: 25.125 | AP23: 36.75 | AQ23: 22.875 | AR23: 63.75 | AT23: 73 | AU23: 55
C24: Pipe Arch - Bottom Radius | H24: =VLOOKUP(H21,AM3:AR37,6,FALSE) -> 110.25 | I24: in. | AC24: pcr = 0.60 ESAPL t2.2 / (P2⁄5 Rbottom9⁄5 ) (psi) | AH24: =(0.6*'Arch Pipe - Polym.'!H68*1000*('Arch Pipe - Polym.'!H61^2.2))/(('Arch Pipe - Polym.'!H65^0.4)*('Arch Pipe - Polym.'!H24^1.8)) -> 11.42964051 | AM24: 77 x 52 | AN24: 21.9 | AO24: 17.875 | AP24: 39.375 | AQ24: 15.125 | AR24: 121.25 | AT24: 77 | AU24: 52
C25: Pipe Arch - Span | H25: =VLOOKUP(H21,AM3:AV37,8,FALSE) -> 71 | I25: in. | AC25: dcr=0.5 Γ(d,g) Rbottom/k(2⁄5) ((t2 P)/(Rbottom )3 )(2⁄5) (in) | AH25: =(0.5*'Arch Pipe - Polym.'!H69*'Arch Pipe - Polym.'!H24*(((('Arch Pipe - Polym.'!H61^2)*'Arch Pipe - Polym.'!H65)/('Arch Pipe - Polym.'!H24^3))^0.4))/('Arch Pipe - Polym.'!H64^0.4) -> 1.587153118 | AM25: 81 x 59 | AN25: 27.4 | AO25: 23.75 | AP25: 39.5 | AQ25: 20.875 | AR25: 82.625 | AT25: 81 | AU25: 59
C26: Pipe Arch - Rise | H26: =VLOOKUP(H21,AM3:AV37,9,FALSE) -> 47 | I26: in. | AC26: M_cr=0.1Γ_(M,g) (E_SAPL (t)^3)/R_bottom () | AH26: =(0.1*'Arch Pipe - Polym.'!H70*'Arch Pipe - Polym.'!H68*1000*('Arch Pipe - Polym.'!H61^3))/'Arch Pipe - Polym.'!H24 -> 666.6666667 | AM26: 83 x 57 | AN26: 26 | AO26: 19.5 | AP26: 43 | AQ26: 16.5 | AR26: 132.25 | AT26: 83 | AU26: 57
AC27: N_cr=1.26p_cr R_bottom | AH27: =1.26*AH24*'Arch Pipe - Polym.'!H24 -> 1587.748511 | AM27: 87 x 63 | AN27: 32.1 | AO27: 25.75 | AP27: 43.375 | AQ27: 22.625 | AR27: 92.25 | AT27: 87 | AU27: 63
C28: Mp Multiple Presence Factor, typically equal to 1.2 Refer to AASHTO LRFD Bridge Design Specifications, 8th Ed. Table 3.6.1.1.2.1. | H28: 1.2 | AC28: m_b=(2.56〖(α⁄α_cr )〗^2)/(1+4.35〖(α⁄α_cr )〗^5 ) | AH28: =(2.56*(('Arch Pipe - Polym.'!H67/'Arch Pipe - Polym.'!H80)^2))/(1+4.35*(('Arch Pipe - Polym.'!H67/'Arch Pipe - Polym.'!H80)^5)) -> 0.6188746605 | AM28: 95 x 67 | AN28: 37 | AO28: 27.75 | AP28: 47 | AQ28: 24.375 | AR28: 100.25 | AT28: 95 | AU28: 67
C29: P Design Wheel Load Refer to AASHTO Bridge Desgin Specifications, 8th Ed., Section 3.6.1.2.6b. P Load is the weight an AASHTO design truck imposes on a single wheel (or pair of wheels in the case of dual wheels). Typical HL-93 Design Truck has 3 axles, front axle load of 8 kips, and two rear axles with a load of 32 kips each (rear wheel load of 16 kips each) | H29: 16000 | I29: lb | AC29: M_u=(m_b (p⁄p_cr )M_cr)/(1-(1-m_b)〖(p⁄p_cr )〗^2 ) | AH29: =(AH28*(AH23/AH24)*AH26)/((1-(((1-AH28))*((AH23/AH24)^2)))) -> 83.59460796 | AM29: 103 x 71 | AN29: 42.4 | AO29: 29.75 | AP29: 51.25 | AQ29: 26.125 | AR29: 111.625 | AT29: 103 | AU29: 71
C30: h Depth of Cover over Culvert Distance from top of the pipe to top of the soil | H30: 24 | I30: in. | AC30: N_u=p/p_cr N_cr | AH30: =(AH23/AH24)*AH27 -> 316.816461 | AM30: 112 x 75 | AN30: 48 | AO30: 31.625 | AP30: 54.875 | AQ30: 27.75 | AR30: 120.25 | AT30: 112 | AU30: 75
C31: LLDF Live Load Distribution Factor Refer to AASHTO Bridge Desgin Specifications, 8th Ed., table 3.6.1.2.6a-1 For Concrete Pipe with fill depth 2.0ft or greater, linearly interpolate between these limits: 1.15 for diameter 2.0ft or less 1.75 for diameters 8.0ft or greater All other culverts and buried structures: 1.15 | H31: 1.15 | M31: Figure 8-1 | AC31: σ_(u,b)=(6M_u)/t^2 | AH31: =6*AH29/('Arch Pipe - Polym.'!H61^2) -> 501.5676477 | AM31: 117 x 79 | AN31: 54.2 | AO31: 33.625 | AP31: 59.375 | AQ31: 29.5 | AR31: 131.75 | AT31: 117 | AU31: 79
C32: lt Tire Patch Length Refer to AASHTO LRFD Bridge Design Specifications, 8th Ed. Section 3.6.1.2.5. | H32: 10 | I32: in. | AC32: σ_(u,d)=N_u/A | AH32: =AH30/'Arch Pipe - Polym.'!H61 -> 316.816461 | AM32: 128 x 83 | AN32: 60.5 | AO32: 35.625 | AP32: 63.25 | AQ32: 31.25 | AR32: 139.75 | AT32: 128 | AU32: 83
C33: Wt Tire Patch Width Refer to AASHTO LRFD Bridge Design Specifications, 8th Ed. Section 3.6.1.2.5. | H33: 20 | I33: in. | AC33: σ_u=σ_(u,b)+σ_(u,d) | AH33: =AH31+AH32 -> 818.3841087 | AM33: 137 x 87 | AN33: 67.4 | AO33: 37.625 | AP33: 67.375 | AQ33: 33 | AR33: 149.5 | AT33: 137 | AU33: 87
C34: Sw Spacing Between the Wheel Pairs on the Axle Refer to AASHTO LRFD Bridge Design Specifications, 8th Ed. Section 3.6.1.2.3. | H34: 72 | I34: in. | AC34: d_s=d_cr [1- (1-p/p_cr )^0.5 ] (in) | AH34: =AH25*(1-AJ34) -> 0.1671505314 | AJ34: =(1-(AH23/AH24))^0.5 -> 0.8946853145 | AM34: 142 x 91 | AN34: 74.5 | AO34: 39.5 | AP34: 71.625 | AQ34: 34.75 | AR34: 162.375 | AT34: 142 | AU34: 91
C35: Sa Axle Spacing Refer to AASHTO LRFD Bridge Design Specifications, 8th Ed. Section 3.6.1.2.3. | H35: 48 | I35: in.
C36: Span Clear span of the culvert (in) See figure 8-2 | H36: =H25 -> 71
C37: δsoil Soil Unit Weight | H37: 120 | I37: pcf
C38: c Soil Cohesion Cohesion per ASCE Manual of Practice (MOP) 60. Standard values: Clay, very soft: 40 psf Clay, medium: 250 psf Clay, hard: 1,000 psf Sand, loose dry: 0 psf Sand, silty: 100 psf Sand, dense: 300 psf | H38: 0 | I38: psf | M38: Figure 8-2
C39: Bc outside span length of the liner (ft) | H39: =H36/12 -> 5.916666667 | M39: Figure 8-1 | AC39: Single Span
C40: kµ' Select kµ' - Refer to Figure 9-13 in ASCE MOP 60 kµ'=0.1924 min for granular material without cohesion kµ'=0.165 max for sand and gravel kµ'=0.150 max for saturated top soil kµ'=0.130 max for ordinary clay kµ'=0.110 max for saturated clay | H40: 0.1924 | AC40: Multiple Span
C41: Hw Height of the Groundwater above the Top of the Pipe Hw = 0 if no groundwater | H41: 0 | I41: ft
C42: Hr height of the vertical dimension of the pipe (ft). | H42: =H26/12 -> 3.916666667
AC43: Delaware Department of Transportation
C44: Select if it is a Single Span culvert or Multiple Span culverts? | H44: Single Span | AC44: Florida Department of Transportation
AC45: Minnesota Department of Transportation
C46: =IF(H44="Single Span","","Specify the distance between inside faces of end walls perpendicular to roadway") ->  | H46: 0 | I46: =IF(H44="Single Span","","ft") ->  | AC46: New York State Department of Transportation
AC47: North Carolina Department of Transportation
C48: Live and Dead Loads Results: | AC48: Ohio Department of Transportation
AC49: Pennsylvania Department of Transportation
C50: Ct Coefficient (Figure 9-13 in ASCE MOP 60) | H50: =(1-EXP('Arch Pipe - Polym.'!AC53))/(2*H40) -> 0.3169669385 | AC50: Select DOT
C51: PL Live Load on Pipe | H51: =IF(H44="Single Span",IF(H30<=96,(H28*H29*'Arch Pipe - Polym.'!AH7)/('Arch Pipe - Polym.'!AH8*'Arch Pipe - Polym.'!AH11),0),IF(H30<=(H46*12),(H28*H29*'Arch Pipe - Polym.'!AH7)/('Arch Pipe - Polym.'!AH8*'Arch Pipe - Polym.'!AH11),0)) -> 12.28348007 | I51: psi | M51: Figure 8-3
C52: PE Earth Load acting on the Horizontal Soil Plane at the Top of the Pipe | H52: ='Arch Pipe - Polym.'!AH19 -> 0.5282782309 | I52: psi
C53: Pw External Hydrostatic Pressure acting on the Pipe | H53: ='Arch Pipe - Polym.'!AH21 -> 0 | I53: psi | AA53: -2kµ'H/Bc | AC53: =-2*'Arch Pipe - Polym.'!H40*'Arch Pipe - Polym.'!H30/('Arch Pipe - Polym.'!H39*12) -> -0.1300732394
C55: =IF(H44="Single Span",IF(H30<=96,"","Note: The effects of live load is neglected."),IF(H30<=(H46*12),"","Note: The effects of live load is neglected.")) -> 
C56: =IF(H44="Single Span",IF(H30<=96,"","Per AASHTO LRFD Bridge Design Specifications, 8th Ed, Section 3.6.1.2.6a: For single-span culverts, the effects of live load may be neglected where the depth of fill is more than 8.0 ft. and exceeds the span length."),IF(H30<=(H46*12),"","Per AASHTO LRFD Bridge Design Specifications, 8th Ed, Section 3.6.1.2.6a: For multiple span culverts, the effects of live load may be neglected where the depth of fill exceeds the distance between inside faces of end walls.")) ->  | M56: Figure 8-4
C59: Design Assumptions (Flexible Polymeric Materials): | AC59: Select kµ' | AE59: =IF(C55="Note: The effects of live load is neglected.",0,1) -> 1
AC60: 0.1924
C61: t Thickness of the Liner - See figure 8-4 Note: Wall thickness is above the corrugation crests. | H61: 1 | I61: in. | AC61: 0.165
C62: ISAPL Moment of Inertia of Liner Profile per unit length of Liner | H62: 0.0456 | I62: in4/in | AC62: 0.15
C63: Γ(α,g) Amplification Factor for the Critical Angle due to Initial Gap, for SAPL = 1 | H63: 1 | AC63: 0.13
C64: k Deformation Mode, k = 1 for a Pipe Arch Shape | H64: 1 | AC64: 0.11
C65: P Perimeter of the Lining | H65: 188.5 | I65: in.
C66: R radius of the arc where the blister develops, (in) | H66: =H24 -> 110.25
C67: α Half Arc Angle where Blister Develops See figure 8-3 | H67: 13 | I67: degree°
C68: ESAPL Short-Term Circumferential Flexural Modulus of Liner Material For determining long term and short term modulus of elasticity, use ASTM D790 standard test methods for short term, and ASTM D2990 standard test methods for long term. In the absence of the ASTM D2990 standard tests, it is a common practice to use 50% of the short term modulus of elasticity as a value for the long term modulus of elasticity. | H68: 735 | I68: ksi
C69: Γ(d,g) Amplification Factor for the Critical Deflection due to Initial Gap, for SAPL = 1 | H69: 1 | AC69: H.in Parallel | AH69: =(H35-H32)/H31 -> 33.04347826
C70: Γ(M,g) Amplification Factor for the Critical Moment due to Initial Gap, for SAPL = 1 | H70: 1 | AH70: =IF(H30<AH69,H32+H31*H30,H32+H35+H31*H30) -> 37.6
C71: ϕbck Resistance Factor to Buckling, recommend a value of 0.5 | H71: 0.5
C72: σR Stress Strength of Material Corresponding to 95% Lower Confidence Limit | H72: 14000 | I72: psi
C73: ϕM Strength Resistance Factor for Material, use 0.67 in absence of testing | H73: 0.6666666667
C74: Deflection Limit: Percentage of the Straight Section (flattest arc element) | H74: 0.03 | I74: %
C76: Results (Flexible Polymeric Materials):
C78: Δt Total Deflection of Liner | H78: =(H51*(H23^4))/(384*H68*1000*H62) -> 1.55898596 | I78: in.
C79: ΔA Total Allowable Deflection of Liner (ΔA = 0.05 Rtop) | H79: =0.05*H23 -> 1.7875 | I79: in. | J79: =IF(H78<=H79,"The "&H61&"-inch thickness is good for the deflection performance","The "&H61&"-inch thickness is not sufficient for the deflection performance") -> The 1-inch thickness is good for the deflection performance
C80: αcr Calculated Half Blister Angle just before Buckling occurs | H80: =((1.55*H63*(H61^(2/5))*(H65^(1/5)))/((H64^(1/5))*(H66^(3/5))))*180/PI() -> 15.06917383 | I80: degree°
C81: αcr / α | H81: =H80/H67 -> 1.159167217 | J81: =IF(H81<=1.5,"Eq. 8-33 is satisfied: αcr / α ≤ 1.5","Eq. 8-33 is not satisfied: αcr / α > 1.5") -> Eq. 8-33 is satisfied: αcr / α ≤ 1.5
C82: p Design Pressure | H82: ='Arch Pipe - Polym.'!AH23 -> 2.280649757 | I82: psi
C83: pcr Buckling Pressure of a Critical Lining | H83: ='Arch Pipe - Polym.'!AH24 -> 11.42964051 | I83: psi
C84: ϕbck pcr | H84: =H83*H71 -> 5.714820255 | I84: psi | J84: =IF(H82<=H84,"Condition of stability is verified: P ≤ (ϕbck Pcr )","Condition of stability is not verified: P > (ϕbck Pcr)") -> Condition of stability is verified: P ≤ (ϕbck Pcr )
C85: ϕM σR | H85: =H72*H73 -> 9333.333333 | I85: psi
C86: σu= σ(u,b)+σ(u,d) | H86: ='Arch Pipe - Polym.'!AH33 -> 818.3841087 | I86: psi | J86: =IF(H86<=H85,"Condition of strength is verified: σu ≤ (ϕM σR)","Condition of strength is not verified: σu > (ϕM σR)") -> Condition of strength is verified: σu ≤ (ϕM σR)
C87: ds Maximum Deflection | H87: ='Arch Pipe - Polym.'!AH34 -> 0.1671505314 | I87: in.
C88: dL Permissible Deflection for Flexible Polymeric Liners | H88: =((H67*PI())/180)*H24*H74 -> 0.7504479451 | I88: in. | J88: =IF(H87<=H88,"Deflection is within the suggested limit of "&H74*100&"%","Deflection is not within the suggested limit of "&H74*100&"%") -> Deflection is within the suggested limit of 3%
